{"text_format":"3","workbook":"xlsx","n_sheets":5,"sheets":["FCL Export Durban"," FCL Import Durban","LCL Export Durban ","LCL Import Durban","Combined Total Summary"],"not_rendered":{"defined_names":6},"read":"whole","date_system":"1900"}

{"sheet":"FCL Export Durban","index":0,"n_rows":31,"n_cols":31,"rows_kept":31,"merged":[[21,4,21,10],[25,5,25,10],[26,5,26,10],[27,5,27,10],[28,5,28,10],[29,5,29,10],[30,5,30,10]]}
[{"$nulls":4},"FCL EXPORT PRICING SCHEDULE - DURBAN COASTAL OFFICE OF EXCHANGE"]
["ROUTE NUMBER","PLACE OF DEPARTURE","DESTINATION","DESTINATION PORT","Container type","Ocean Freight","Bunker Surcharge","US Security Fee","Port Security Fee","Line Security Fee","Container Seal Charge","On-Carriage Fee","Destination Doc Fee","Chassis Surface Charge","AMS Filling Fee","Imbalance Surcharge","Shipping Line Realease Fee","S.A Terminal Handling Origin","Terminal Handling Destination","Emission control fee","Cargo Data Declaration","SA Port Duties","Solus Charges","Transport / Cartage","Customs clearance / Agency fees","Export Cargo Dues","Other","Total per Shipment",null,"Qty for 8 months","Grand Total (Incl VAT) for 8 months"]
["D1","DURBAN","SINGAPORE","SINGAPORE","6 ME Full Container Load (FCL)",{"$nulls":22},{"$f":"SUM(F3:AA3)","v":0},null,{"v":4,"d":"4.00 "},{"$f":"AD3*AB3","v":0}]
[]
["D2","DURBAN","JAPAN","YOKOHAMA","6 ME Full Container Load (FCL)",{"$nulls":22},{"$f":"SUM(F5:AA5)","v":0},null,{"v":4,"d":"4.00 "},{"$f":"AD5*AB5","v":0}]
[]
["D3","DURBAN","TAIWAN","KEELUNG","6 ME Full Container Load (FCL)",{"$nulls":22},{"$f":"SUM(F7:AA7)","v":0},null,{"v":1,"d":"1.00 "},{"$f":"AD7*AB7","v":0}]
[]
["D4","DURBAN","AUSTRALIA","SYDNEY","6 ME Full Container Load (FCL)",{"$nulls":22},{"$f":"SUM(F9:AA9)","v":0},null,{"v":5,"d":"5.00 "},{"$f":"AD9*AB9","v":0}]
[]
["D5","DURBAN","HONGKONG","HONGKONG","6 ME Full Container Load (FCL)",{"$nulls":22},{"$f":"SUM(F11:AA11)","v":0},null,{"v":5,"d":"5.00 "},{"$f":"AD11*AB11","v":0}]
[]
["D6","DURBAN","SYCHELLES","MAHE","6 ME Full Container Load (FCL)",{"$nulls":22},{"$f":"SUM(F13:AA13)","v":0},null,{"v":1,"d":"1.00 "},{"$f":"AD13*AB13","v":0}]
[]
["D7","DURBAN","MAURITIUS","PORTLOUIS","6 ME Full Container Load (FCL)",{"$nulls":22},{"$f":"SUM(F15:AA15)","v":0},null,{"v":4,"d":"4.00 "},{"$f":"AD15*AB15","v":0}]
[]
["D8","DURBAN","REUNION","ST DENIS","6 ME Full Container Load (FCL)",{"$nulls":22},{"$f":"SUM(F17:AA17)","v":0},null,{"v":1,"d":"1.00 "},{"$f":"AD17*AB17","v":0}]
[]
["D9","DURBAN","SRI LANKA","COLOMBO","6 ME Full Container Load (FCL)",{"$nulls":22},{"$f":"SUM(F19:AA19)","v":0},null,{"v":1,"d":"1.00 "},{"$f":"AD19*AB19","v":0}]
["GRAND TOTAL(Incl VAT)",{"$nulls":28},{"$f":"SUM(AD3:AD19)","v":{"v":26,"d":"26.00 "}},{"$f":"SUM(AE3:AE19)","v":0}]
[]
[{"$nulls":4},"The Bidder warrants that the pricing quoted above is free of any errors or omissions and that he/she is able to deliver the contact on the prices quoted."]
[]
[{"$nulls":4},"Quote rates in South African Rand that include value added tax (VAT)"]
[]
[{"$nulls":4},"SIGNATURE:"]
[{"$nulls":4},"NAME OF DELEGATED SIGNATORY (PRINT) :"]
[{"$nulls":5},"in his capacity as"]
[{"$nulls":4},"DESIGNATION OF SIGNATORY (PRINT) :"]
[{"$nulls":5},"who warrants his authority to sign on behalf of"]
[{"$nulls":4},"NAME OF BIDDER (COMPANY) :"]

{"sheet":" FCL Import Durban","index":1,"n_rows":33,"n_cols":15,"rows_kept":33,"merged":[[23,0,23,11],[25,0,25,11],[27,0,27,3],[27,4,27,9],[28,0,28,3],[28,4,28,9],[29,0,29,3],[29,4,29,9],[30,0,30,3],[30,4,30,9],[31,0,31,3],[31,4,31,9],[32,0,32,3],[32,4,32,9],[35,0,35,8]]}
[{"$nulls":3},"FCL IMPORT PRICING SCHEDULE - DURBAN COASTAL OFFICE OF EXCHANGE"]
["ROUTE NUMBER","DEPARTURE","DEPARTURE PORT","CONTAINER TYPE","Port Dues","Container cleaning fee","Transport","Doc Fees","Container Transport Oder(CTO) Fee","Agency and Disburse-ment Fee","OTHER","Total per shipment",null,"Qty for 8 months","Grand Total(Incl VAT) for 8 months"]
["D1","SINGAPORE","SINGAPORE","6 ME Full Container Load (FCL)",{"$nulls":7},{"$f":"SUM(E3:K3)","v":0},null,{"v":1,"d":"1.00 "},{"$f":"N3*L3","v":0}]
[]
["D2","JAPAN","YOKOHAMA","6 ME Full Container Load (FCL)",{"$nulls":7},{"$f":"SUM(E5:K5)","v":0},null,{"v":3,"d":"3.00 "},{"$f":"N5*L5","v":0}]
[]
["D3","TAIWAN","KEELUNG","6 ME Full Container Load (FCL)",{"$nulls":7},{"$f":"SUM(E7:K7)","v":0},null,{"v":1,"d":"1.00 "},{"$f":"N7*L7","v":0}]
[]
["D4","AUSTRALIA","SYDNEY","6 ME Full Container Load (FCL)",{"$nulls":7},{"$f":"SUM(E9:K9)","v":0},null,{"v":3,"d":"3.00 "},{"$f":"N9*L9","v":0}]
[]
["D5","BRAZIL","SANTOS","6 ME Full Container Load (FCL)",{"$nulls":7},{"$f":"SUM(E11:K11)","v":0},null,{"v":1,"d":"1.00 "},{"$f":"N11*L11","v":0}]
[]
["D6","HONGKONG","HONGKONG","6 ME Full Container Load (FCL)",{"$nulls":7},{"$f":"SUM(E13:K13)","v":0},null,{"v":2,"d":"2.00 "},{"$f":"N13*L13","v":0}]
[]
["D7","SYCHELLES","MAHE","6 ME Full Container Load (FCL)",{"$nulls":7},{"$f":"SUM(E15:K15)","v":0},null,{"v":1,"d":"1.00 "},{"$f":"N15*L15","v":0}]
[]
["D8","MAURITIUS","PORTLOUIS","6 ME Full Container Load (FCL)",{"$nulls":7},{"$f":"SUM(E17:K17)","v":0},null,{"v":2,"d":"2.00 "},{"$f":"N17*L17","v":0}]
[]
["D9","REUNION","ST DENIS","6 ME Full Container Load (FCL)",{"$nulls":7},{"$f":"SUM(E19:K19)","v":0},null,{"v":1,"d":"1.00 "},{"$f":"N19*L19","v":0}]
[]
["D10","SRI LANKA","COLOMBO","6 ME Full Container Load (FCL)",{"$nulls":7},{"$f":"SUM(E21:K21)","v":0},null,{"v":1,"d":"1.00 "},{"$f":"N21*L21","v":0}]
["GRAND TOTAL(Incl VAT)",{"$nulls":12},{"$f":"SUM(N3:N21)","v":{"v":16,"d":"16.00 "}},{"$f":"SUM(O3:O21)","v":0}]
[]
["The Bidder warrants that the pricing quoted above is free of any errors or omissions and that he/she is able to deliver the contact on the prices quoted."]
[]
["Quote rates in South African Rand that include value added tax (VAT)"]
[]
["SIGNATURE:"]
["NAME OF DELEGATED SIGNATORY (PRINT) :"]
[{"$nulls":4},"in his capacity as"]
["DESIGNATION OF SIGNATORY (PRINT) :"]
[{"$nulls":4},"who warrants his authority to sign on behalf of"]
["NAME OF BIDDER (COMPANY) :"]

{"sheet":"LCL Export Durban ","index":2,"n_rows":33,"n_cols":20,"rows_kept":33,"merged":[[0,0,0,19],[23,0,23,15],[25,0,25,11],[27,0,27,4],[27,5,27,10],[28,0,28,4],[28,5,28,10],[29,0,29,3],[29,5,29,10],[30,0,30,4],[30,5,30,10],[31,0,31,3],[31,5,31,10],[32,0,32,4],[32,5,32,10]]}
["LCL EXPORT PRICING SCHEDULE - DURBAN COASTAL OFFICE OF EXCHANGE"]
["ROUTE NUMBER","PLACE OF DEPARTURE","DESTINATION","DESTINATION PORT","CONTAINER TYPE","No. of CUBES per shipment","Port Dues per Cube *","Transport per Cube*","Cost per Cube","Container cleaning fee","Doc Fees","Container Transport Oder(CTO) Fee","Agency and Disburs-ment Fee","Solus Charges","OTHER","Subtotal Cost per Shipment",null,"NO. OF CUBES","NO. OF SHIPMENTS","Grand Total (Incl VAT) for 8 months"]
["D1","DURBAN","SINGAPORE","SINGAPORE","LESS CONTAINER LOAD(LCL)",{"v":1,"d":"1.00 "},null,null,{"$f":"F3*(G3+H3)","v":0},{"$nulls":6},{"$f":"SUM(J3:O3)","v":0},null,1,1,{"$f":"(I3*R3)+(P3*S3)","v":0}]
[]
["D2","DURBAN","JAPAN","YOKOHAMA","LESS CONTAINER LOAD(LCL)",{"v":1,"d":"1.00 "},null,null,{"$f":"F5*(G5+H5)","v":0},{"$nulls":6},{"$f":"SUM(J5:O5)","v":0},null,1,1,{"$f":"(I5*R5)+(P5*S5)","v":0}]
[]
["D3","DURBAN","TAIWAN","KEELUNG","LESS CONTAINER LOAD(LCL)",{"v":1,"d":"1.00 "},null,null,{"$f":"F7*(G7+H7)","v":0},{"$nulls":6},{"$f":"SUM(J7:O7)","v":0},null,8,4,{"$f":"(I7*R7)+(P7*S7)","v":0}]
[]
["D4","DURBAN","AUSTRALIA","SYDNEY","LESS CONTAINER LOAD(LCL)",{"v":1,"d":"1.00 "},null,null,{"$f":"F9*(G9+H9)","v":0},{"$nulls":6},{"$f":"SUM(J9:O9)","v":0},null,1,1,{"$f":"(I9*R9)+(P9*S9)","v":0}]
[]
["D5","DURBAN","HONGKONG","HONGKONG","LESS CONTAINER LOAD(LCL)",{"v":1,"d":"1.00 "},null,null,{"$f":"F11*(G11+H11)","v":0},{"$nulls":6},{"$f":"SUM(J11:O11)","v":0},null,1,1,{"$f":"(I11*R11)+(P11*S11)","v":0}]
[]
["D6","DURBAN","SYCHELLES","MAHE","LESS CONTAINER LOAD(LCL)",{"v":1,"d":"1.00 "},null,null,{"$f":"F13*(G13+H13)","v":0},{"$nulls":6},{"$f":"SUM(J13:O13)","v":0},null,8,2,{"$f":"(I13*R13)+(P13*S13)","v":0}]
[]
["D7","DURBAN","MAURITIUS","PORTLOUIS","LESS CONTAINER LOAD(LCL)",{"v":1,"d":"1.00 "},null,null,{"$f":"F15*(G15+H15)","v":0},{"$nulls":6},{"$f":"SUM(J15:O15)","v":0},null,1,1,{"$f":"(I15*R15)+(P15*S15)","v":0}]
[]
["D8","DURBAN","REUNION","ST DENIS","LESS CONTAINER LOAD(LCL)",{"v":1,"d":"1.00 "},null,null,{"$f":"F17*(G17+H17)","v":0},{"$nulls":6},{"$f":"SUM(J17:O17)","v":0},null,2,2,{"$f":"(I17*R17)+(P17*S17)","v":0}]
[]
["D9","DURBAN","SRI LANKA","COLOMBO","LESS CONTAINER LOAD(LCL)",{"v":1,"d":"1.00 "},null,null,{"$f":"F19*(G19+H19)","v":0},{"$nulls":6},{"$f":"SUM(J19:O19)","v":0},null,2,2,{"$f":"(I19*R19)+(P19*S19)","v":0}]
["GRAND TOTAL(Incl VAT)",{"$nulls":17},{"$f":"SUM(S3:S19)","v":15},{"$f":"SUM(T3:T19)","v":0}]
[{"$nulls":5},"* Note:Transport and port duties are quotes per cube"]
[{"$nulls":5},"*All other costs are per shipment"]
[]
["The Bidder warrants that the pricing quoted above is free of any errors or omissions and that he/she is able to deliver the contact on the prices quoted."]
[]
["Quote rates in South African Rand that include value added tax (VAT)"]
[]
["SIGNATURE:"]
["NAME OF DELEGATED SIGNATORY (PRINT) :"]
[{"$nulls":5},"in his capacity as"]
["DESIGNATION OF SIGNATORY (PRINT) :"]
[{"$nulls":5},"who warrants his authority to sign on behalf of"]
["NAME OF BIDDER (COMPANY) :"]

{"sheet":"LCL Import Durban","index":3,"n_rows":35,"n_cols":19,"rows_kept":35,"merged":[[0,0,0,18],[25,0,25,11],[27,0,27,11],[29,0,29,3],[29,4,29,9],[30,0,30,3],[30,4,30,9],[31,0,31,3],[31,4,31,9],[32,0,32,3],[32,4,32,9],[33,0,33,3],[33,4,33,9],[34,0,34,3],[34,4,34,9]]}
["LCL IMPORT PRICING SCHEDULE - DURBAN COASTAL OFFICE OF EXCHANGE"]
["ROUTE NUMBER","DEPARTURE","DEPARTURE PORT","CONTAINER TYPE","No. of cubes","Port Dues *","Transport *","Cost per Cubes","Container Clearning Fee","Document Fees","Container Transport order (CTO)","Agency and Disburs-ment Fee","Solus charges","OTHERS","Total per Shipment",null,"NO. OF CUBES","NO. OF SHIPMENTS","Grand Total (Incl VAT) for 8 months"]
["D1","SINGAPORE","SINGAPORE","LESS CONTAINER LOAD(LCL)",1,null,null,{"$f":"E3*(F3+G3)","v":{"v":0,"d":"0.00"}},{"$nulls":6},{"$f":"SUM(I3:N3)","v":{"v":0,"d":"0.00"}},null,3,2,{"$f":"(H3*Q3)+(O3*R3)","v":0}]
[]
["D2","JAPAN","YOKOHAMA","LESS CONTAINER LOAD(LCL)",1,null,null,{"$f":"E5*(F5+G5)","v":{"v":0,"d":"0.00"}},{"$nulls":6},{"$f":"SUM(I5:N5)","v":{"v":0,"d":"0.00"}},null,1,1,{"$f":"(H5*Q5)+(O5*R5)","v":0}]
[]
["D3","TAIWAN","KEELUNG","LESS CONTAINER LOAD(LCL)",1,null,null,{"$f":"E7*(F7+G7)","v":{"v":0,"d":"0.00"}},{"$nulls":6},{"$f":"SUM(I7:N7)","v":{"v":0,"d":"0.00"}},null,1,1,{"$f":"(H7*Q7)+(O7*R7)","v":0}]
[]
["D4","AUSTRALIA","SYDNEY","LESS CONTAINER LOAD(LCL)",1,null,null,{"$f":"E9*(F9+G9)","v":{"v":0,"d":"0.00"}},{"$nulls":6},{"$f":"SUM(I9:N9)","v":{"v":0,"d":"0.00"}},null,1,1,{"$f":"(H9*Q9)+(O9*R9)","v":0}]
[]
["D5","BRAZIL","SANTOS","LESS CONTAINER LOAD(LCL)",1,null,null,{"$f":"E11*(F11+G11)","v":{"v":0,"d":"0.00"}},{"$nulls":6},{"$f":"SUM(I11:N11)","v":{"v":0,"d":"0.00"}},null,1,1,{"$f":"(H11*Q11)+(O11*R11)","v":0}]
[]
["D6","HONGKONG","HONGKONG","LESS CONTAINER LOAD(LCL)",1,null,null,{"$f":"E13*(F13+G13)","v":{"v":0,"d":"0.00"}},{"$nulls":6},{"$f":"SUM(I13:N13)","v":{"v":0,"d":"0.00"}},null,3,2,{"$f":"(H13*Q13)+(O13*R13)","v":0}]
[]
["D7","SYCHELLES","MAHE","LESS CONTAINER LOAD(LCL)",1,null,null,{"$f":"E15*(F15+G15)","v":{"v":0,"d":"0.00"}},{"$nulls":6},{"$f":"SUM(I15:N15)","v":{"v":0,"d":"0.00"}},null,1,1,{"$f":"(H15*Q15)+(O15*R15)","v":0}]
[]
["D8","MAURITIUS","PORTLOUIS","LESS CONTAINER LOAD(LCL)",1,null,null,{"$f":"E17*(F17+G17)","v":{"v":0,"d":"0.00"}},{"$nulls":6},{"$f":"SUM(I17:N17)","v":{"v":0,"d":"0.00"}},null,1,1,{"$f":"(H17*Q17)+(O17*R17)","v":0}]
[]
["D9","REUNION","ST DENIS","LESS CONTAINER LOAD(LCL)",1,null,null,{"$f":"E19*(F19+G19)","v":{"v":0,"d":"0.00"}},{"$nulls":6},{"$f":"SUM(I19:N19)","v":{"v":0,"d":"0.00"}},null,1,1,{"$f":"(H19*Q19)+(O19*R19)","v":0}]
[]
["D10","SRI LANKA","COLOMBO","LESS CONTAINER LOAD(LCL)",1,null,null,{"$f":"E21*(F21+G21)","v":{"v":0,"d":"0.00"}},{"$nulls":6},{"$f":"SUM(I21:N21)","v":{"v":0,"d":"0.00"}},null,2,2,{"$f":"(H21*Q21)+(O21*R21)","v":0}]
["GRAND TOTAL(Incl VAT)",{"$nulls":16},{"$f":"SUM(R3:R21)","v":13},{"$f":"SUM(S3:S21)","v":0}]
[{"$nulls":4},"* Note:Transport and port duties are quotes per cube"]
[{"$nulls":4},"*All other costs are per shipment"]
[]
["The Bidder warrants that the pricing quoted above is free of any errors or omissions and that he/she is able to deliver the contact on the prices quoted."]
[]
["Quote rates in South African Rand that include value added tax (VAT)"]
[]
["SIGNATURE:"]
["NAME OF DELEGATED SIGNATORY (PRINT) :"]
[{"$nulls":4},"in his capacity as"]
["DESIGNATION OF SIGNATORY (PRINT) :"]
[{"$nulls":4},"who warrants his authority to sign on behalf of"]
["NAME OF BIDDER (COMPANY) :"]

{"sheet":"Combined Total Summary","index":4,"n_rows":21,"n_cols":3,"rows_kept":21,"merged":[[0,0,0,2],[3,0,3,2],[4,0,4,1],[5,0,5,1],[6,0,6,1],[7,0,7,1],[8,0,8,1],[11,0,11,2],[13,0,13,2]]}
["ANNEXURE F - PRICING SCHEDULE"]
[null,"Ref no:","RFQ/26/27/39"]
[]
["DURBAN COASTAL OFFICE OF EXCHANGE TOTAL SHEET"]
["FCL EXPORT PRICING TOTAL (INCL VAT)",null,{"$f":"'FCL Export Durban'!AE20","v":0}]
["FCL IMPORT PRICING TOTAL (INCL VAT)",null,{"$f":"' FCL Import Durban'!O22","v":0}]
["LCL EXPORT PRICING TOTAL (INCL VAT)",null,{"$f":"'LCL Export Durban '!T20","v":0}]
["LCL IMPORT PRICING TOTAL (INCL VAT)",null,{"$f":"'LCL Import Durban'!S22","v":0}]
["GRAND TOTAL (INCL VAT)",null,{"$f":"SUM(C5:C8)","v":0}]
[]
[]
["The Bidder warrants that the pricing quoted above is free of any errors or omissions and the he/she is able to deliver the contract on the prices quoted."]
[]
["Quote rates in South African Rand that include value added tax (VAT)"]
[]
["SIGNATURE:"]
["NAME OF DELEGATED SIGNATORY (PRINT) :"]
[null,"in his capacity as"]
["DESIGNATION OF SIGNATORY [PRINT] :"]
[null,"who warrants his authority to sign on behalf of"]
["NAME OF BIDDER (COMPANY) :"]